[Event "US Masters 2024"]
[Site "Charlotte"]
[Date "2024.11.30"]
[Round "5.21"]
[White "Wang, Tianqi"]
[Black "Budisavljevic, Luka"]
[Result "1/2-1/2"]
[ECO "D30"]
[WhiteElo "2323"]
[BlackElo "2488"]
[Annotator "TA"]
[PlyCount "52"]
[EventDate "2024.09.23"]
[EventType "swiss"]
[EventCountry "USA"]
[SourceTitle "playchess.com"]
[Source "ChessBase"]
[SourceQuality "1"]
[TimeControl "5400+30"]

{[%evp 9,52,13,31,20,29,10,29,26,27,28,31,24,9,12,27,10,12,7,10,2,15,4,21,27,31,43,38,22,47,33,38,17,32,36,32,27,34,27,31,30,41,32,29,14,16]} 1. d4 {[%emt 0:05:56]} Nf6 {[%emt 0:01:22]} 2. Nf3 {[%emt 0:00:16]} e6 {[%emt 0:01:52]} 3. c4 {[%emt 0:00:14]} d5 {[%emt 0:01:52]} 4. e3 {[%emt 0:00:46]} Bb4+ {[%emt 0:02:08]} 5. Nbd2 {[%emt 0:00:11]} Be7 {[%emt 0:03:41]} 6. b3 {[%emt 0:00:51]} b6 {[%emt 0:00:19]} 7. Bd3 {[%emt 0:00:11]} Bb7 {[%emt 0:00:05]} 8. O-O {[%emt 0:00:24] White has an edge.} c5 {[%emt 0:01:58]} 9. cxd5 {[%emt 0:00:49]} exd5 {[%emt 0:00:21]} 10. Ba3 {[%emt 0:01:28]} O-O {[%emt 0:02:26]} 11. Rc1 {[%emt 0:00:14]} Nbd7 {[%emt 0:01:31][%cal Bb8d7,Bd7f8,Bf8e6][%mdl 32]} 12. Nb1 {[%emt 0:00:52]} Rc8 {[%emt 0:05:52]} 13. Qe2 {[%emt 0:02:29]} Bd6 {[%emt 0:10:32]} 14. Nc3 {[%emt 0:03:23]} Re8 {[%emt 0:03:26]} 15. Bb2 {[%emt 0:08:18]} Qe7 {[%emt 0:02:55]} 16. Ba6 {[%emt 0:02:14]} Nf8 {[%emt 0:03:34]} 17. Bxb7 {[%emt 0:01:32]} Qxb7 {[%emt 0:00:02]} 18. dxc5 {[%emt 0:00:39]} Bxc5 {[%emt 0:05:54][%cal Od5d4]} 19. Rfd1 {[%emt 0:00:43]} Ne6 {[%emt 0:00:22][%cal Od5d4]} 20. Qd3 {[%emt 0:03:50][%cal Rc3d5]} Red8 {[%emt 0:04:26]} 21. Ne2 {[%emt 0:00:10] Bxf6 would now be deadly.} Ne4 {[%emt 0:01:23]} 22. Ng3 {[%emt 0:01:10]} h6 {[%emt 0:03:19]} 23. Rc2 {[%emt 0:03:23]} Bf8 {[%emt 0:02:23]} 24. Rxc8 {[%emt 0:01:14]} Qxc8 {[%emt 0:04:33]} 25. Rc1 {[%emt 0:02:13]} Qb7 {[%emt 0:00:36]} 26. Nd4 {[%emt 0:00:54]} Nxg3 {[%emt 0:03:54] Weighted Error Value: White=0.05 (flawless) /Black=0.05 (flawless) .  OK:         	White=7     	Black=8} 1/2-1/2

[Event "US Masters 2024"]
[Site "Charlotte"]
[Date "2024.11.29"]
[Round "5.22"]
[White "Tsay, Vincent"]
[Black "Escalante Ramirez, Brian"]
[Result "1/2-1/2"]
[ECO "E04"]
[WhiteElo "2309"]
[BlackElo "2476"]
[Annotator "TA"]
[PlyCount "22"]
[EventDate "2024.09.23"]
[EventType "swiss"]
[EventCountry "USA"]
[SourceTitle "playchess.com"]
[Source "ChessBase"]
[SourceQuality "1"]
[TimeControl "5400+30"]

{[%evp 10,22,0,-2,-6,-6,0,-20,-13,-41,0,-52,0,-79,-29]} 1. d4 {[%emt 0:04:11]} e6 {[%emt 0:00:35]} 2. c4 {[%emt 0:00:16]} d5 {[%emt 0:00:14]} 3. Nf3 {[%emt 0:00:14]} Nf6 {[%emt 0:00:13]} 4. g3 {[%emt 0:00:14]} Bb4+ {[%emt 0:00:03]} 5. Nbd2 {[%emt 0:00:06]} dxc4 {[%emt 0:00:06]} 6. Bg2 {[%emt 0:00:10]} b5 {[%emt 0:00:20] Prevents Qa4} 7. O-O {[%emt 0:00:08][%cal Od2c4]} O-O {[%emt 0:00:04]} 8. a4 {[%emt 0:00:13]} c6 {[%emt 0:00:09]} 9. axb5 {[%emt 0:00:17]} cxb5 {[%emt 0:00:52] And now ...Bb7 would win.} 10. Ng5 {[%emt 0:00:13]} (10. Ne1 $1 $11 Nd5 11. e4) 10... Nd5 $15 {[%emt 0:02:57]} 11. e4 $1 {[%emt 0:00:15] [#]} Nc7 $1 {[%emt 0:10:42] White took control after the opening.   Weighted Error Value: White=0.12 (very precise) /Black=0.00 (flawless) .  Mistake:       	White=1     	---        Inaccurate:     	---       	Black=1      OK:         	White=1     	Black=1      Best:        	White=1     	Black=2      Strong:       	White=1     	Black=1} ({Much worse is} 11... Qxg5 $6 12. exd5 exd5 13. Nxc4 $11) 1/2-1/2

[Event "US Masters 2024"]
[Site "Charlotte"]
[Date "2024.11.30"]
[Round "5.23"]
[White "Anatol, Luke Leon Robin"]
[Black "Canty, James"]
[Result "1/2-1/2"]
[ECO "B51"]
[WhiteElo "1992"]
[BlackElo "2189"]
[Annotator "RC"]
[PlyCount "56"]
[EventDate "2024.09.23"]
[EventType "swiss"]
[EventCountry "USA"]
[SourceTitle "playchess.com"]
[Source "ChessBase"]
[SourceQuality "1"]
[TimeControl "5400+30"]

1. e4 {[%emt 0:00:54]} c5 {[%emt 0:00:17]} 2. Nf3 {[%emt 0:00:08]} d6 {[%emt 0:00:06]} 3. Bb5+ {[%emt 0:00:06]} Nd7 {[%emt 0:00:04]} 4. O-O {[%emt 0:00:14]} a6 {[%emt 0:00:01]} 5. Bxd7+ {[%emt 0:00:37]} Bxd7 {[%emt 0:00:06]} 6. c3 {[%emt 0:00:11]} g6 {[%emt 0:01:03]} 7. d4 {[%emt 0:01:03]} cxd4 {[%emt 0:00:03]} 8. cxd4 {[%emt 0:00:07]} Bg7 {[%emt 0:00:03]} 9. Nc3 {[%emt 0:01:52]} b5 {[%emt 0:02:09]} 10. Re1 {[%emt 0:04:14]} b4 {[%emt 0:01:14]} 11. Nd5 {[%emt 0:01:55]} a5 {[%emt 0:00:12]} 12. Bg5 {[%emt 0:10:09]} Nf6 {[%emt 0:08:40]} 13. Nxe7 {[%emt 0:05:12]} Kxe7 {[%emt 0:06:14]} 14. e5 {[%emt 0:02:55]} Kf8 {[%emt 0:00:09]} 15. Rc1 {[%emt 0:06:12]} h6 {[%emt 0:00:48]} 16. exf6 {[%emt 0:01:03]} Bxf6 {[%emt 0:00:05]} 17. Bf4 {[%emt 0:00:28]} Bb5 {[%emt 0:04:04]} 18. Qb3 {[%emt 0:06:05]} Qd7 {[%emt 0:03:13]} 19. Qd5 {[%emt 0:07:21]} Ra6 {[%emt 0:00:55]} 20. Rc2 {[%emt 0:15:43]} Kg7 {[%emt 0:14:32]} 21. Rec1 {[%emt 0:00:29]} Bd8 {[%emt 0:00:06]} 22. h4 {[%emt 0:05:38]} Re8 {[%emt 0:01:16]} 23. h5 {[%emt 0:04:25]} Bd3 {[%emt 0:08:48]} 24. hxg6 {[%emt 0:02:39]} Bxc2 {[%emt 0:10:48]} 25. gxf7 {[%emt 0:00:20]} Qxf7 {[%emt 0:01:20]} 26. Bxh6+ {[%emt 0:00:57]} Kg8 {[%emt 0:00:08]} 27. Qxf7+ {[%emt 0:01:25]} Kxf7 {[%emt 0:00:03]} 28. Rxc2 {[%emt 0:00:12]} Bf6 {[%emt 0:00:28]} 1/2-1/2

[Event "US Masters 2024"]
[Site "Charlotte"]
[Date "2024.11.30"]
[Round "5.24"]
[White "Belenkaya, Dina"]
[Black "Shivakumar, Shawnak"]
[Result "1-0"]
[ECO "D31"]
[WhiteElo "2151"]
[BlackElo "2324"]
[Annotator "RC"]
[PlyCount "99"]
[EventDate "2024.09.23"]
[EventType "swiss"]
[EventCountry "USA"]
[SourceTitle "playchess.com"]
[Source "ChessBase"]
[SourceQuality "1"]
[TimeControl "5400+30"]

1. d4 {[%emt 0:12:27]} d5 {[%emt 0:00:37]} 2. c4 {[%emt 0:00:14]} e6 {[%emt 0:00:23]} 3. Nc3 {[%emt 0:00:52]} c6 {[%emt 0:00:11]} 4. e4 {[%emt 0:00:32]} dxe4 {[%emt 0:00:07]} 5. Nxe4 {[%emt 0:00:07]} Bb4+ {[%emt 0:00:05]} 6. Nc3 {[%emt 0:03:13]} c5 {[%emt 0:00:23]} 7. Nf3 {[%emt 0:03:23]} Nf6 {[%emt 0:03:50]} 8. a3 {[%emt 0:10:57]} Ba5 {[%emt 0:01:20]} 9. Be3 {[%emt 0:08:28]} O-O {[%emt 0:21:28]} 10. dxc5 {[%emt 0:07:29]} Bxc3+ {[%emt 0:02:35]} 11. bxc3 {[%emt 0:00:03]} Qa5 {[%emt 0:00:59]} 12. Qc2 {[%emt 0:08:42]} Ng4 {[%emt 0:17:47]} 13. Bg5 {[%emt 0:08:23]} f6 {[%emt 0:14:43]} 14. Bc1 {[%emt 0:01:45]} Qxc5 {[%emt 0:05:23]} 15. h3 {[%emt 0:00:23]} Ne5 {[%emt 0:00:38]} 16. Nxe5 {[%emt 0:00:27]} Qxe5+ {[%emt 0:00:13]} 17. Be2 {[%emt 0:00:33]} b6 {[%emt 0:03:13]} 18. O-O {[%emt 0:03:25]} Bb7 {[%emt 0:00:12]} 19. Bd3 {[%emt 0:03:32]} f5 {[%emt 0:01:12]} 20. Be3 {[%emt 0:02:21]} Nc6 {[%emt 0:03:30]} 21. Rfe1 {[%emt 0:04:45]} Qf6 {[%emt 0:01:15]} 22. f4 {[%emt 0:01:50]} Rae8 {[%emt 0:01:42]} 23. c5 {[%emt 0:00:54]} e5 {[%emt 0:01:16]} 24. cxb6 {[%emt 0:03:29]} axb6 {[%emt 0:03:53]} 25. Bxb6 {[%emt 0:01:47]} Kh8 {[%emt 0:06:02]} 26. Bc5 {[%emt 0:01:56]} Rf7 {[%emt 0:04:15]} 27. Rab1 {[%emt 0:00:32]} Ba8 {[%emt 0:02:32]} 28. Rb6 {[%emt 0:01:14]} Qd8 {[%emt 0:00:25]} 29. Bc4 {[%emt 0:01:22]} Rf6 {[%emt 0:02:19]} 30. Qf2 {[%emt 0:06:37]} h6 {[%emt 0:01:58]} 31. Bb5 {[%emt 0:00:48]} exf4 {[%emt 0:00:58]} 32. Rxe8+ {[%emt 0:00:12]} Qxe8 {[%emt 0:01:06]} 33. Qxf4 {[%emt 0:01:26]} Qe1+ {[%emt 0:00:00]} 34. Kh2 {[%emt 0:00:19]} Rg6 {[%emt 0:00:04]} 35. Bf1 {[%emt 0:01:54]} Qxc3 {[%emt 0:00:26]} 36. Bd4 {[%emt 0:00:39]} Nxd4 {[%emt 0:00:49]} 37. Rxg6 {[%emt 0:00:21]} Kh7 {[%emt 0:00:34]} 38. Rg3 {[%emt 0:00:36]} Qc5 {[%emt 0:00:17]} 39. Bd3 {[%emt 0:00:19]} g5 {[%emt 0:00:46]} 40. Qb8 {[%emt 0:00:23]} Qd5 {[%emt 0:00:32]} 41. Qc7+ {[%emt 0:00:36]} Kh8 {[%emt 0:00:29]} 42. Bc4 {[%emt 0:00:11]} Qe4 {[%emt 0:00:29]} 43. Qd8+ {[%emt 0:00:22]} Kg7 {[%emt 0:00:01]} 44. Qg8+ {[%emt 0:00:08]} Kf6 {[%emt 0:00:03]} 45. Qf7+ {[%emt 0:00:40]} Ke5 {[%emt 0:02:00]} 46. Qe7+ {[%emt 0:01:02]} Kf4 {[%emt 0:00:30]} 47. Qd6+ {[%emt 0:00:34]} Qe5 {[%emt 0:00:00]} 48. Qxh6 Qe7 {[%emt 0:00:28]} 49. h4 Nf3+ {[%emt 0:01:02]} 50. gxf3 {[%emt 0:01:19]} 1-0